[Event "XIII Figueira da Foz Open 2019"]
[Site "Figueira da Foz"]
[Date "2019.10.30"]
[Round "4.5"]
[White "Pintor, Simao Maciel Abranch"]
[Black "Clarke, Brandon G I"]
[Result "0-1"]
[ECO "B90"]
[WhiteElo "2137"]
[BlackElo "2445"]
[Annotator "RC"]
[PlyCount "84"]
[EventDate "2019.10.27"]
[EventType "swiss"]
[EventCountry "POR"]
[SourceTitle "playchess.com"]
[Source "ChessBase"]
[SourceQuality "1"]
[TimeControl "40/5400+30:1800+30"]

1. e4 {[%emt 0:08:47]} c5 {[%emt 0:00:00]} 2. Nf3 {[%emt 0:00:14]} d6 {[%emt 0:00:00]} 3. d4 {[%emt 0:00:05]} cxd4 {[%emt 0:00:00]} 4. Nxd4 {[%emt 0:00:06]} Nf6 {[%emt 0:00:01]} 5. Nc3 {[%emt 0:00:06]} a6 {[%emt 0:02:24]} 6. Be3 {[%emt 0:00:07]} e5 {[%emt 0:00:20]} 7. Nf3 {[%emt 0:00:06]} Be7 {[%emt 0:00:21]} 8. Bc4 {[%emt 0:00:10]} O-O {[%emt 0:00:04]} 9. O-O {[%emt 0:00:09]} Be6 {[%emt 0:00:03]} 10. Bxe6 {[%emt 0:00:09]} fxe6 {[%emt 0:00:02]} 11. Na4 {[%emt 0:00:10]} Ng4 {[%emt 0:00:33]} 12. Qd3 {[%emt 0:00:08]} Nxe3 {[%emt 0:00:14]} 13. Qxe3 {[%emt 0:00:05]} b5 {[%emt 0:00:06]} 14. Nb6 {[%emt 0:00:06]} Ra7 {[%emt 0:00:04]} 15. Nd5 {[%emt 0:00:37]} Rb7 {[%emt 0:00:01]} 16. Qd2 {[%emt 0:00:42]} Nc6 {[%emt 0:02:55]} 17. c3 {[%emt 0:06:05]} Na5 {[%emt 0:03:25]} 18. Nxe7+ {[%emt 0:03:58]} Rxe7 {[%emt 0:04:37]} 19. b3 {[%emt 0:03:33]} Nb7 {[%emt 0:00:51]} 20. Rfd1 {[%emt 0:02:54]} Qb6 {[%emt 0:00:02]} 21. a4 {[%emt 0:09:21]} h6 {[%emt 0:03:30]} 22. b4 {[%emt 0:07:30]} Ref7 {[%emt 0:01:37]} 23. axb5 {[%emt 0:01:54]} axb5 {[%emt 0:00:03]} 24. Qa2 {[%emt 0:02:24]} Qc6 {[%emt 0:03:01]} 25. Qxe6 {[%emt 0:03:06]} Qxe4 {[%emt 0:02:54]} 26. Re1 {[%emt 0:15:25]} Qc2 {[%emt 0:08:26]} 27. Rac1 {[%emt 0:12:53]} Qd3 {[%emt 0:12:30]} 28. c4 {[%emt 0:10:31]} Nd8 {[%emt 0:07:46]} 29. Qd5 {[%emt 0:00:04]} Qxd5 {[%emt 0:00:25]} 30. cxd5 {[%emt 0:00:05]} Rf4 {[%emt 0:00:09]} 31. Re2 {[%emt 0:04:55]} Rxb4 {[%emt 0:00:31]} 32. Nd2 {[%emt 0:02:58]} Rd4 {[%emt 0:00:39]} 33. Ne4 {[%emt 0:00:05]} Rxd5 {[%emt 0:00:30]} 34. f3 {[%emt 0:01:04]} Ne6 {[%emt 0:00:10]} 35. Ra2 {[%emt 0:01:17]} Rf7 {[%emt 0:32:57]} 36. Ra6 {[%emt 0:02:49]} Rd7 {[%emt 0:00:08]} 37. Rcc6 {[%emt 0:01:25]} Nc5 {[%emt 0:00:08]} 38. Ra8+ {[%emt 0:00:52]} Kh7 {[%emt 0:01:10]} 39. Nc3 {[%emt 0:00:04]} Rd2 {[%emt 0:00:19]} 40. Nxb5 {[%emt 0:00:00]} Rb7 {[%emt 0:00:00]} 41. Rxd6 {[%emt 0:06:24]} Nd3 {[%emt 0:03:08]} 42. Nc3 {[%emt 0:02:43]} Rb1+ {[%emt 0:00:20]} 0-1

[Event "XIII Figueira da Foz Open 2019"]
[Site "Figueira da Foz"]
[Date "2019.10.30"]
[Round "4.15"]
[White "Puglia, Francesco"]
[Black "Goncalves, Lucas Jordao"]
[Result "0-1"]
[ECO "C52"]
[WhiteElo "1916"]
[BlackElo "1447"]
[Annotator "NA RC"]
[PlyCount "99"]
[EventDate "2019.10.27"]
[EventType "swiss"]
[EventCountry "POR"]
[SourceTitle "playchess.com"]
[Source "ChessBase"]
[SourceQuality "1"]
[TimeControl "40/5400+30:1800+30"]

1. e4 e5 2. Nf3 Nc6 3. Bc4 Bc5 4. b4 Bxb4 5. c3 Ba5 6. d4 exd4 7. Qb3 {C52: Evans Gambit Accepted: 5 c3 Ba5} Qe7 (7... Qf6 8. O-O d3 9. e5 Qg6 10. Ba3 Nge7 11. Rd1 O-O 12. Bxd3 Qh6 13. Nbd2 d5 14. exd6 cxd6 15. Ne4 d5 16. Bc1 Qg6 {0-1 (59) Short,N (2698)-Kasparov,G (2812) Leuven 2011}) 8. O-O Nf6 9. Ba3 d6 10. cxd4 Nxe4 $146 ({Predecessor:} 10... Bb6 11. Qd3 O-O 12. e5 Ne8 13. Nbd2 a5 14. Rae1 Qd8 {1-0 (37) Stopa,J (2474)-Bartholomew,J (2451) Mesa 2010}) 11. d5 Ne5 12. Nxe5 Qxe5 13. Qa4+ Bd7 14. Qxa5 Qxa1 15. Nd2 Qd4 16. Nxe4 Qxc4 17. Bxd6 O-O-O 18. Bf4 Bf5 19. Nc5 b6 20. Qxa7 Qxc5 21. Rc1 Bc2 22. Qa6+ Kb8 23. d6 cxd6 24. Be3 Qc6 25. Bxb6 Rd7 26. Qa5 Rb7 27. Be3 Rc8 28. Bf4 Be4 29. Re1 Qd5 30. Qa4 g5 31. Bg3 f5 32. f3 Qc6 33. Qa3 f4 34. Bf2 Bd5 35. Qa5 Re8 36. Rd1 Qb5 37. Qa3 Qb4 38. Qa6 Re6 39. Qd3 Qc4 40. Qf5 Rf7 41. Qxg5 Rb7 42. h4 Bxf3 43. Qd8+ Qc8 44. Qxc8+ Kxc8 45. gxf3 Kd7 46. a3 Rb3 47. Ra1 Rxf3 48. a4 Re2 49. Bb6 Rh3 $19 (49... Rg3+ $142 50. Kf1 Rh2) 50. a5 0-1

[Event "XIII Figueira da Foz Open 2019"]
[Site "Figueira da Foz"]
[Date "2019.10.30"]
[Round "4.16"]
[White "Silva, Mariana Sofia T."]
[Black "Dong, Rafael"]
[Result "1-0"]
[ECO "A05"]
[WhiteElo "1880"]
[BlackElo "1486"]
[Annotator "NA RC"]
[PlyCount "102"]
[EventDate "2019.10.27"]
[EventType "swiss"]
[EventCountry "POR"]
[SourceTitle "playchess.com"]
[Source "ChessBase"]
[SourceQuality "1"]
[TimeControl "40/5400+30:1800+30"]

1. Nf3 {[%emt 0:12:02]} Nf6 {[%emt 0:00:00]} 2. g3 {[%emt 0:00:09]} d5 {[%emt 0:00:00]} 3. Bg2 {[%emt 0:00:08]} c6 {[%emt 0:00:00]} 4. b3 {[%emt 0:00:23]} Bf5 {[%emt 0:00:07]} 5. Bb2 {[%emt 0:00:09]} e6 {[%emt 0:00:08]} 6. O-O {[%emt 0:00:16]} Be7 {[%emt 0:00:22]} 7. d3 {[%emt 0:00:18]} O-O {[%emt 0:00:24]} 8. Nbd2 {[%emt 0:00:14]} h6 {[%emt 0:00:33]} 9. Qe1 {[%emt 0:00:20]} Qc7 {[%emt 0:07:33] A07: Réti Opening: New York and Capablanca Systems} (9... a5 10. a3 Bh7 11. e4 c5 12. Ne5 Nc6 13. Nxc6 bxc6 14. f4 a4 15. Kh1 Re8 16. Qe2 Qb6 17. Rae1 Nd7 18. g4 Bf8 19. g5 hxg5 20. fxg5 axb3 21. cxb3 {1-0 (33) Li,C (2720)-Mareco,S (2664) chess.com INT 2017}) 10. e4 {[%emt 0:01:45]} Bh7 {[%emt 0:01:20]} 11. Qe2 {[%emt 0:05:54]} c5 $146 {[%emt 0:02:24]} ({Predecessor:} 11... a5 12. a3 b5 13. Kh1 Nfd7 14. Nd4 Re8 15. f4 Na6 16. Rae1 Rab8 17. Qg4 Nf6 18. Qh3 dxe4 19. Nxe4 Bxe4 20. dxe4 {1-0 (30) Fominykh,M (2308)-Solovjova,V (2298) Moscow 2006}) 12. Ne5 {[%emt 0:06:49]} Nc6 {[%emt 0:02:26]} 13. Nxc6 {[%emt 0:03:59]} bxc6 {[%emt 0:00:16]} 14. Rae1 {[%emt 0:05:34]} Rfe8 {[%emt 0:05:15]} 15. Kh1 {[%emt 0:01:35]} a5 {[%emt 0:07:41]} 16. a4 Rad8 {[%emt 0:10:11]} 17. f4 {[%emt 0:04:01]} Kh8 {[%emt 0:10:01]} 18. Bf3 {[%emt 0:05:11]} Kg8 {[%emt 0:10:42]} 19. Qg2 {[%emt 0:00:45]} Nd7 {[%emt 0:03:54]} 20. Bg4 {[%emt 0:08:03]} f5 {[%emt 0:04:05]} 21. exf5 {[%emt 0:01:48]} exf5 {[%emt 0:00:14]} 22. Bh5 {[%emt 0:02:14]} g6 {[%emt 0:00:20]} 23. Bf3 {[%emt 0:02:51]} Bf6 {[%emt 0:00:16]} 24. Bxf6 {[%emt 0:01:56]} Nxf6 {[%emt 0:00:11]} 25. Qf2 {[%emt 0:01:11]} Qd6 {[%emt 0:01:29]} 26. h3 {[%emt 0:02:00]} Kg7 {[%emt 0:01:43]} 27. Bg2 {[%emt 0:00:25]} Nd7 {[%emt 0:01:46]} 28. Nf3 {[%emt 0:00:59]} Bg8 {[%emt 0:05:20]} 29. Qd2 {[%emt 0:03:00]} Qc7 {[%emt 0:01:01]} 30. Rxe8 {[%emt 0:00:50]} Rxe8 {[%emt 0:00:09]} 31. Re1 {[%emt 0:00:18]} Be6 {[%emt 0:00:49]} 32. Re2 {[%emt 0:03:28]} Kf7 {[%emt 0:01:41]} 33. Qe1 {[%emt 0:00:52]} Qb6 {[%emt 0:03:20]} 34. Qc3 {[%emt 0:05:17]} Qb4 {[%emt 0:01:00]} 35. Qxb4 {[%emt 0:00:14]} axb4 {[%emt 0:00:35]} 36. Kg1 {[%emt 0:02:25]} c4 {[%emt 0:01:14]} 37. dxc4 {[%emt 0:03:54]} dxc4 {[%emt 0:00:09]} 38. Nd4 {[%emt 0:00:56]} Bd5 {[%emt 0:01:15]} 39. Rxe8 {[%emt 0:01:58]} Kxe8 {[%emt 0:00:13]} 40. Nxc6 {[%emt 0:00:00]} cxb3 {[%emt 0:00:00]} 41. cxb3 {[%emt 0:05:19]} Bxb3 42. a5 {[%emt 0:00:10]} Bc4 {[%emt 0:03:24]} 43. Nxb4 {[%emt 0:05:00]} Nc5 {[%emt 0:08:12]} 44. Kf2 {[%emt 0:01:42]} Kd7 45. Ke3 {[%emt 0:01:28]} Kd6 {[%emt 0:08:26]} 46. Kd4 {[%emt 0:01:29]} Bb5 {[%emt 0:05:17]} 47. Bd5 {[%emt 0:10:07]} g5 {[%emt 0:02:16]} 48. Nc2 gxf4 49. gxf4 {[%emt 0:00:34]} Nd3 {[%emt 0:00:45]} 50. Na3 {[%emt 0:04:14]} Ba6 {[%emt 0:02:33]} 51. Bc4 {[%emt 0:02:12]} Nb4 $18 {[%emt 0:04:22]} 1-0

[Event "XIII Figueira da Foz Open 2019"]
[Site "Figueira da Foz"]
[Date "2019.10.30"]
[Round "4.17"]
[White "Barrento, Jorge Maria Lopes"]
[Black "Dong, Fabio"]
[Result "1-0"]
[ECO "D00"]
[WhiteElo "1739"]
[BlackElo "1410"]
[Annotator "NA RC"]
[PlyCount "49"]
[EventDate "2019.10.27"]
[EventType "swiss"]
[EventCountry "POR"]
[SourceTitle "playchess.com"]
[Source "ChessBase"]
[SourceQuality "1"]
[TimeControl "40/5400+30:1800+30"]

1. d4 {[%emt 0:21:50]} d5 {[%emt 0:00:00]} 2. Nc3 {[%emt 0:00:12]} c6 {[%emt 0:00:16]} 3. Bf4 {[%emt 0:00:16]} Nf6 {[%emt 0:00:16]} 4. e3 {[%emt 0:00:16]} Bf5 {[%emt 0:00:37]} 5. f3 {[%emt 0:02:29]} h5 {[%emt 0:05:32]} 6. Bd3 {[%emt 0:01:08]} Bxd3 {[%emt 0:02:08]} 7. Qxd3 {[%emt 0:01:54]} e6 {[%emt 0:01:31]} 8. Nge2 {[%emt 0:02:46]} Bd6 {[%emt 0:02:04]} 9. Bg5 {[%emt 0:00:44]} Nbd7 {[%emt 0:01:39]} 10. e4 {[%emt 0:00:28]} dxe4 {[%emt 0:01:55]} 11. fxe4 {[%emt 0:00:45]} e5 {[%emt 0:01:08]} 12. O-O-O {[%emt 0:01:18]} exd4 {[%emt 0:06:08]} 13. Nxd4 {[%emt 0:03:33]} Ne5 {[%emt 0:07:22]} 14. Qf1 {[%emt 0:02:08]} Ned7 {[%emt 0:13:42]} 15. Nf5 {[%emt 0:09:27]} Bf8 {[%emt 0:02:05]} 16. e5 {[%emt 0:00:24]} g6 {[%emt 0:05:57]} 17. Bxf6 {[%emt 0:02:50]} Qb6 {[%emt 0:02:36]} 18. Bxh8 {[%emt 0:00:48]} gxf5 {[%emt 0:02:10]} 19. Rxd7 {[%emt 0:03:08]} Kxd7 {[%emt 0:01:29]} 20. Qxf5+ {[%emt 0:00:33]} Ke8 {[%emt 0:01:30]} 21. Re1 {[%emt 0:03:20]} Bh6+ {[%emt 0:05:28]} 22. Kb1 {[%emt 0:03:55]} Bd2 {[%emt 0:05:43]} 23. e6 {[%emt 0:00:17]} Bxe1 {[%emt 0:03:10]} 24. Qxf7+ {[%emt 0:01:29]} Kd8 {[%emt 0:00:34]} 25. Qd7# {[%emt 0:02:01]} 1-0

[Event "XIII Figueira da Foz Open 2019"]
[Site "Figueira da Foz"]
[Date "2019.10.30"]
[Round "4.18"]
[White "Gama, Joao Goncalo Cerejei"]
[Black "Fonseca, Rene Gil Bakker"]
[Result "1-0"]
[ECO "C05"]
[WhiteElo "1712"]
[BlackElo "1338"]
[Annotator "NA RC"]
[PlyCount "39"]
[EventDate "2019.10.27"]
[EventType "swiss"]
[EventCountry "POR"]
[SourceTitle "playchess.com"]
[Source "ChessBase"]
[SourceQuality "1"]
[TimeControl "40/5400+30:1800+30"]

1. e4 {[%emt 0:00:00]} e6 {[%emt 0:00:00]} 2. d4 {[%emt 0:00:00]} d5 {[%emt 0:00:00]} 3. Nd2 {[%emt 0:00:00]} Nf6 {[%emt 0:00:00]} 4. e5 {[%emt 0:00:03]} Nfd7 {[%emt 0:00:00]} 5. Bd3 {[%emt 0:00:12]} c5 {[%emt 0:00:06]} 6. c3 {[%emt 0:00:17]} Nc6 {[%emt 0:00:15]} 7. Ne2 {[%emt 0:00:28]} f6 {[%emt 0:00:14]} 8. f4 {[%emt 0:02:54]} cxd4 {[%emt 0:00:17]} 9. cxd4 {[%emt 0:00:18]} fxe5 {[%emt 0:03:39]} 10. fxe5 {[%emt 0:00:12]} Qh4+ {[%emt 0:06:02]} 11. g3 {[%emt 0:01:19]} Qh5 {[%emt 0:08:39]} 12. O-O {[%emt 0:03:47]} Be7 {[%emt 0:05:23]} 13. Nf3 {[%emt 0:12:38]} O-O {[%emt 0:08:18]} 14. Nf4 {[%emt 0:01:22]} Qg4 {[%emt 0:09:04]} 15. Kg2 {[%emt 0:05:12]} Bh4 {[%emt 0:09:27]} 16. Nxh4 {[%emt 0:00:53]} Qxd1 {[%emt 0:00:24]} 17. Rxd1 {[%emt 0:00:03]} Nb6 {[%emt 0:02:35]} 18. Nf3 {[%emt 0:01:18]} Bd7 {[%emt 0:00:57]} 19. Ng5 {[%emt 0:06:29]} Nxd4 {[%emt 0:02:41]} 20. Bxh7+ {[%emt 0:00:16]} 1-0

[Event "XIII Figueira da Foz Open 2019"]
[Site "Figueira da Foz"]
[Date "2019.10.31"]
[Round "5.7"]
[White "Martin Duque, Jesus"]
[Black "Gavasheli, Ana"]
[Result "1-0"]
[ECO "C41"]
[WhiteElo "2445"]
[BlackElo "2240"]
[Annotator "RC"]
[PlyCount "81"]
[EventDate "2019.10.27"]
[EventType "swiss"]
[EventCountry "POR"]
[SourceTitle "playchess.com"]
[Source "ChessBase"]
[SourceQuality "1"]
[TimeControl "40/5400+30:1800+30"]

1. e4 e5 2. Nf3 d6 3. Nc3 Nc6 4. d4 exd4 5. Nxd4 g6 6. Nxc6 bxc6 7. Bf4 Bg7 8. Qd2 Be6 9. O-O-O a5 10. Qe3 Nf6 11. Be2 Nd7 12. Bh6 Bxh6 13. Qxh6 Rb8 14. f4 Qe7 15. Bf3 Qf8 16. Qg5 Nc5 17. f5 f6 18. Qe3 Bd7 19. g4 Qe7 20. h4 gxf5 21. gxf5 Bxf5 22. Qh6 Bd7 23. Rhg1 Ne6 24. Qh5+ Kd8 25. Qxa5 Nc5 26. b4 Ne6 27. a3 Qf8 28. Bg4 Qh6+ 29. Kb2 Kc8 30. Qa6+ Rb7 31. Bxe6 Bxe6 32. Qa8+ Rb8 33. Qxc6 Rb6 34. Qa8+ Rb8 35. Qa6+ Kd7 36. Qa4+ Kc8 37. Nb5 Rd8 38. Nxd6+ Rxd6 39. Rxd6 cxd6 40. Qc6+ Kd8 41. Qxd6+ 1-0

[Event "XIII Figueira da Foz Open 2019"]
[Site "Figueira da Foz"]
[Date "2019.10.31"]
[Round "5.8"]
[White "Djuric, Stefan"]
[Black "Roettgen, Juergen"]
[Result "1-0"]
[ECO "A33"]
[WhiteElo "2356"]
[BlackElo "2157"]
[Annotator "RC"]
[PlyCount "56"]
[EventDate "2019.10.27"]
[EventType "swiss"]
[EventCountry "POR"]
[SourceTitle "playchess.com"]
[Source "ChessBase"]
[SourceQuality "1"]
[TimeControl "40/5400+30:1800+30"]

1. c4 {[%emt 0:09:32]} Nf6 {[%emt 0:00:00]} 2. Nc3 {[%emt 0:00:16]} c5 {[%emt 0:01:05]} 3. Nf3 {[%emt 0:00:08]} Nc6 {[%emt 0:00:48]} 4. d4 {[%emt 0:02:09]} cxd4 {[%emt 0:00:41]} 5. Nxd4 {[%emt 0:00:01]} e6 {[%emt 0:01:32]} 6. g3 {[%emt 0:01:37]} Bb4 {[%emt 0:03:05]} 7. Bg2 {[%emt 0:00:12]} a6 {[%emt 0:01:37]} 8. O-O {[%emt 0:00:21]} O-O {[%emt 0:01:14]} 9. Na4 {[%emt 0:15:30]} d5 {[%emt 0:13:41]} 10. cxd5 {[%emt 0:03:26]} exd5 {[%emt 0:01:04]} 11. Be3 {[%emt 0:04:02]} Be6 {[%emt 0:18:19]} 12. a3 {[%emt 0:15:14]} Be7 {[%emt 0:06:19]} 13. Nxe6 {[%emt 0:01:55]} fxe6 {[%emt 0:00:15]} 14. Bh3 {[%emt 0:00:03]} Kf7 {[%emt 0:09:38]} 15. Rc1 {[%emt 0:00:19]} d4 {[%emt 0:08:02]} 16. Bf4 {[%emt 0:03:02]} Nd5 {[%emt 0:01:46]} 17. Bd2 {[%emt 0:00:36]} Rc8 {[%emt 0:05:47]} 18. e4 {[%emt 0:04:56]} Nc7 {[%emt 0:06:32]} 19. Bf4 {[%emt 0:08:30]} Bd6 {[%emt 0:03:02]} 20. Bxd6 {[%emt 0:02:45]} Qxd6 {[%emt 0:00:13]} 21. Nc5 {[%emt 0:00:01]} Nd8 {[%emt 0:01:19]} 22. e5 {[%emt 0:01:47]} Qxe5 {[%emt 0:04:50]} 23. Nd7 {[%emt 0:03:07]} Qd6 {[%emt 0:00:50]} 24. Qf3+ {[%emt 0:02:54]} Kg8 {[%emt 0:01:27]} 25. Qxf8+ {[%emt 0:00:18]} Qxf8 {[%emt 0:00:08]} 26. Nxf8 {[%emt 0:00:03]} Kxf8 {[%emt 0:00:16]} 27. Rfd1 {[%emt 0:00:02]} Nc6 {[%emt 0:00:22]} 28. Bg2 {[%emt 0:00:05]} Ke8 1-0

[Event "XIII Figueira da Foz Open 2019"]
[Site "Figueira da Foz"]
[Date "2019.10.31"]
[Round "5.14"]
[White "Tadevosyan, Aspet"]
[Black "Gama, Joao Goncalo Cerejei"]
[Result "1-0"]
[ECO "A25"]
[WhiteElo "1998"]
[BlackElo "1712"]
[Annotator "NA"]
[PlyCount "98"]
[EventDate "2019.10.27"]
[EventType "swiss"]
[EventCountry "POR"]
[SourceTitle "playchess.com"]
[Source "ChessBase"]
[SourceQuality "1"]
[TimeControl "40/5400+30:1800+30"]

1. c4 {[%emt 0:00:26]} e5 {[%emt 0:00:08]} 2. g3 {[%emt 0:00:21]} d6 {[%emt 0:01:02]} 3. Bg2 {[%emt 0:00:10]} Nc6 {[%emt 0:01:56]} 4. Nc3 {[%emt 0:00:30]} Be6 {[%emt 0:01:46]} 5. d3 {[%emt 0:00:15]} g6 {[%emt 0:02:20]} (5... Qd7 6. f4 g6 7. fxe5 dxe5 8. Be3 Rd8 9. Nf3 h6 10. O-O Bg7 11. Nd2 f5 12. Qa4 Nge7 13. Nb3 b6 {0-1 (47) Adly,A (2637)-Short,N (2678) Riadh 2017}) 6. Rb1 {[%emt 0:03:29] A25: English Opening vs King's Indian with ...Nc6 but without early d3} a5 {[%emt 0:00:45]} 7. a3 {[%emt 0:02:55]} Nge7 {[%emt 0:02:37]} 8. b4 $146 {[%emt 0:04:15]} ({Predecessor:} 8. Nd5 Bg7 9. e3 Qd7 10. b4 axb4 11. axb4 Bxd5 12. cxd5 Na7 13. Ne2 {1-0 (124) Lengyel,L-Gerusel,M Bad Pyrmont 1970}) 8... axb4 {[%emt 0:01:43]} 9. axb4 {[%emt 0:00:23]} d5 {[%emt 0:07:15]} 10. b5 {[%emt 0:01:24]} Na5 {[%emt 0:04:05]} 11. cxd5 {[%emt 0:10:37]} Nxd5 {[%emt 0:01:19]} 12. Nxd5 {[%emt 0:00:50]} Bxd5 {[%emt 0:00:09]} 13. e4 {[%emt 0:00:42]} (13. Bxd5 $11 Qxd5 14. Nf3) 13... Be6 {[%emt 0:01:41]} (13... Ba2 $5 {[%cal Ra2b1]} 14. Rb2 Be6 $15) 14. Nf3 {[%emt 0:00:55]} Bg7 {[%emt 0:04:55]} 15. O-O {[%emt 0:02:31]} O-O {[%emt 0:00:10]} 16. Qc2 {[%emt 0:06:58]} Qe7 {[%emt 0:04:16]} 17. Bd2 {[%emt 0:08:18]} c5 {[%emt 0:04:40]} 18. b6 {[%emt 0:12:36]} Nc6 {[%emt 0:16:52]} 19. Rfc1 {[%emt 0:01:40]} Nb4 {[%emt 0:01:44]} (19... Qd7 $11) 20. Bxb4 {[%emt 0:04:20]} cxb4 {[%emt 0:00:05]} 21. Qc7 {[%emt 0:00:19]} Qxc7 {[%emt 0:06:26]} 22. bxc7 {[%emt 0:02:56]} b3 {[%emt 0:02:24]} 23. Ng5 {[%emt 0:02:33]} Bd7 {[%emt 0:01:25]} 24. Rxb3 {[%emt 0:01:33]} Bh6 {[%emt 0:03:56]} 25. f4 {[%emt 0:00:57]} exf4 {[%emt 0:03:01]} (25... Bxg5 $16 {was worth a try.} 26. fxg5 b5) 26. gxf4 {[%emt 0:00:07]} f6 {[%emt 0:00:24]} 27. Nh3 {[%emt 0:01:10]} g5 {[%emt 0:14:48]} (27... b5 {was worth a try.} 28. e5 Rae8) 28. e5 {[%emt 0:09:32]} Bxh3 $2 {[%emt 0:04:40]} (28... gxf4 29. Bd5+ Kg7) 29. Bxh3 {[%emt 0:00:25]} g4 {[%emt 0:00:14]} 30. Bxg4 {[%emt 0:00:34]} Bxf4 {[%emt 0:00:05]} 31. c8=Q {[%emt 0:00:51]} Raxc8 {[%emt 0:01:24]} 32. Rxc8 {[%emt 0:00:09]} Rxc8 {[%emt 0:00:29]} 33. Bxc8 {[%emt 0:00:07]} Bxe5 {[%emt 0:00:03]} 34. Rxb7 {[%emt 0:00:19]} h6 {[%emt 0:01:16]} 35. Kg2 {[%emt 0:00:33]} Kf8 {[%emt 0:00:08]} 36. h3 {[%emt 0:00:26]} Ke8 {[%emt 0:00:03]} 37. Kh1 {[%emt 0:00:14]} Kd8 {[%emt 0:00:04]} 38. Be6 {[%emt 0:00:08]} Ke8 {[%emt 0:00:13]} 39. Kg1 {[%emt 0:00:12]} Kf8 {[%emt 0:00:52]} 40. Kf1 {[%emt 0:00:00]} Ke8 $18 {[%emt 0:00:00]} 41. Ke2 {[%emt 0:00:30]} Kf8 {[%emt 0:01:23]} 42. Kd1 {[%emt 0:00:05]} Ke8 {[%emt 0:00:15]} 43. Kc2 {[%emt 0:00:05]} Kf8 {[%emt 0:00:09]} 44. Kb1 {[%emt 0:00:04]} Ke8 {[%emt 0:00:14]} 45. Ka2 {[%emt 0:00:04]} Kf8 {[%emt 0:01:20]} 46. Kb3 {[%emt 0:00:09]} Ke8 {[%emt 0:00:03]} 47. Ka4 {[%emt 0:00:03]} Kf8 {[%emt 0:00:04]} 48. Kb5 {[%emt 0:00:04]} Ke8 {[%emt 0:00:06]} 49. Kc4 {[%emt 0:00:05]} Kf8 {[%emt 0:00:03]} 1-0

[Event "XIII Figueira da Foz Open 2019"]
[Site "Figueira da Foz"]
[Date "2019.10.31"]
[Round "5.16"]
[White "Heeren, Arnoldo"]
[Black "Marcal, Armando Paulo Gomes"]
[Result "1-0"]
[ECO "A05"]
[WhiteElo "1929"]
[BlackElo "1706"]
[Annotator "NA RC"]
[PlyCount "64"]
[EventDate "2019.10.27"]
[EventType "swiss"]
[EventCountry "POR"]
[SourceTitle "playchess.com"]
[Source "ChessBase"]
[SourceQuality "1"]
[TimeControl "40/5400+30:1800+30"]

1. Nf3 {[%emt 0:01:08]} Nf6 {[%emt 0:00:14]} 2. g3 {[%emt 0:00:14]} g6 {[%emt 0:00:34]} (2... d5 3. Bg2 g6 4. d4 Bg7 5. O-O O-O 6. c3 c6 7. Nbd2 Nbd7 8. Re1 Re8 9. e4 Nxe4 10. Nxe4 dxe4 11. Rxe4 Nf6 12. Re1 {½-½ (12) Sivuk,V (2551)-Vovk,Y (2565) Lvov 2018}) 3. Bg2 Bg7 {[%emt 0:00:23]} 4. d4 {[%emt 0:00:49]} c6 {[%emt 0:01:01]} 5. O-O {[%emt 0:01:14]} d5 {[%emt 0:02:28]} 6. Nc3 {[%emt 0:01:31]} O-O {[%emt 0:02:50]} 7. Re1 {[%emt 0:01:38]} Nbd7 {[%emt 0:03:20] D02: 1 d4 d5 2 Nf3 sidelines, including 2...Nf6 3 g3 and 2...Nf6 3 Bf4} 8. e4 {[%emt 0:00:08]} dxe4 {[%emt 0:02:05]} 9. Nxe4 Nxe4 {[%emt 0:00:45]} 10. Rxe4 {[%emt 0:00:38]} Nf6 {[%emt 0:01:08]} 11. Re1 Bg4 12. c3 {[%emt 0:03:23]} Re8 {[%emt 0:00:57]} 13. h3 {[%emt 0:01:21]} Be6 {[%emt 0:00:30]} 14. g4 $146 {[%emt 0:09:56]} ({Predecessor:} 14. Rxe6 fxe6 15. Qe2 Qd7 16. Bg5 Nd5 {1-0 (64) Gurvich,V (2326)-Smirnov,T (2296) Odintsovo 2017}) 14... Bd5 {[%emt 0:02:46]} 15. Bf4 {[%emt 0:02:30]} Nd7 {[%emt 0:06:48]} 16. Qc2 {[%emt 0:11:46]} b5 {[%emt 0:02:48]} 17. a4 {[%emt 0:03:31]} bxa4 {[%emt 0:05:48]} 18. Qxa4 {[%emt 0:02:14]} Nb6 {[%emt 0:00:57]} 19. Qc2 {[%emt 0:02:32]} f6 {[%emt 0:02:06]} (19... a5 $14) 20. b3 {[%emt 0:03:07]} Qd7 {[%emt 0:02:28]} (20... e5 $14 21. dxe5 fxe5) 21. Rad1 {[%emt 0:01:24]} (21. c4 $16) 21... Qb7 {[%emt 0:05:11]} 22. c4 {[%emt 0:02:07]} Bf7 {[%emt 0:00:20]} 23. Re2 {[%emt 0:06:56]} a5 {[%emt 0:09:41]} 24. Bg3 {[%emt 0:06:09]} a4 {[%emt 0:02:54]} 25. Nd2 {[%emt 0:01:39]} e5 {[%emt 0:04:44]} 26. d5 {[%emt 0:03:38]} cxd5 {[%emt 0:02:14]} 27. bxa4 {[%emt 0:01:26]} Qc7 {[%emt 0:03:12]} 28. c5 {[%emt 0:02:30]} Rxa4 {[%emt 0:01:57]} 29. Nb3 {[%emt 0:03:42]} Rc4 {[%emt 0:07:10]} 30. Qd3 {[%emt 0:00:52]} d4 {[%emt 0:02:28]} (30... Na4 $11 31. Bxd5 Bxd5 32. Qxd5+ Qf7) 31. cxb6 {[%emt 0:02:09]} Qxb6 {[%emt 0:00:40]} 32. Nd2 {[%emt 0:00:50]} Rec8 $18 {[%emt 0:01:11]} (32... Rc3 $14 33. Qb1 Qd8) 1-0